Workbook

Sheet 1. Forside
A1: Rebild Vand og Spildevand A/S (spildevand)
D8: Bilag A
D13: Indholdsfortegnelse
C16: Fane nr. 2 | D16: Samlet prisloft
C17: Fane nr. 3 | D17: Driftsomkostninger
C18: Fane nr. 4 | D18: Historiske investeringer
C19: Fane nr. 5 | D19: Gennemførte investeringer
C20: Fane nr. 6 | D20: Korrektion investeringer
C21: Fane nr. 7 | D21: Planlagte investeringer
C22: Fane nr. 8 | D22: 1:1 omkostninger
C23: Fane nr. 9 | D23: Miljø- og servicemål
C24: Fane nr. 10 | D24: Klimatilpasning
C25: Fane nr. 11 | D25: Nettofinansielle poster
C26: Fane nr. 12 | D26: Over- eller underdækning
C27: Fane nr. 13 | D27: Kontrol med indtægtsrammen og oversigt over ekstraordinære effektiviseringsgevinster

Sheet 2. Samlet prisloft
A1: ='1. Forside'!A1 -> Rebild Vand og Spildevand A/S (spildevand)
B4: Fane 2. Samlet prisloft for 2015
B6: Driftsomkostninger
B7: Driftsomkostninger i prisloftet for 2014 | C7: ='3. Driftsomkostninger'!C21 -> 12328586.05 | D7: kr.
B8: Bortfald af væsentlige omkostninger | C8: =-'3. Driftsomkostninger'!C17 -> 0 | D8: kr.
B9: Korrektion for prisudviklingen 2014-2015 | C9: ='3. Driftsomkostninger'!C23 -> 9862.868844 | D9: kr.
B10: Forhøjelse til effektivt niveau iht. benchmarkingen | C10: ='3. Driftsomkostninger'!C29 -> 0 | D10: kr.
B11: Korrektion for generelt effektiviseringskrav | C11: =-'3. Driftsomkostninger'!C35 -> -54245.77864 | D11: kr.
B12: Korrektion for individuelt effektiviseringskrav | C12: =-'3. Driftsomkostninger'!C44 -> -382802.5856 | D12: kr.
B13: Driftsomkostninger i alt | C13: =SUM(C7:C12) -> 11901400.56 | D13: kr. | E13: =C13 -> 11901400.56 | F13: kr.
B14: Investeringer
B15: Tillæg for historiske investeringer | C15: ='4. Historiske investeringer'!C9 -> 32120344.19 | D15: kr.
B16: Tillæg for gennemførte investeringer i 2011-2013 | C16: ='5. Gennemførte investeringer'!F26 -> 1779573.229 | D16: kr.
B17: Korrektion af tillæg for planlagte investeringer vedrørende 2013 | C17: ='6. Korrektion investeringer'!C10 -> 361988.1989 | D17: kr.
B18: Tillæg for planlagte investeringer i 2014 og 2015 | C18: ='7. Planlagte investeringer'!F62 -> 1388166.667 | D18: kr.
B19: Investeringstillæg i alt | C19: =SUM(C15:C18) -> 35650072.28 | D19: kr. | E19: =C19 -> 35650072.28 | F19: kr.
B20: Øvrige omkostninger mv.
B21: Tillæg for 1:1 omkostninger i 2015 | C21: ='8. 1-1 omkostninger'!C11 -> 4945000 | D21: kr.
B22: Tillæg vedr. revisorerklæringer og DANVA/FVD-kontingent | C22: ='8. 1-1 omkostninger'!C19 -> 83200 | D22: kr.
B23: Korrektion ift. faktiske 1:1 omkostninger i 2013 | C23: ='8. 1-1 omkostninger'!C25 -> -413048 | D23: kr.
B24: Tillæg for driftsomkostninger til miljø- og servicemål i 2015 | C24: ='9. Miljø- og servicemål'!C9 -> 43500 | D24: kr.
B25: Korrektion ift. faktiske driftsomkostninger til miljø- og servicemål i 2013 | C25: ='9. Miljø- og servicemål'!C16 -> 0 | D25: kr.
B26: Tillæg for driftsomkostninger til medfinansiering af klimatilpasningsprojekter i 2015 | C26: ='10. Klimatilpasning'!C9 -> 0 | D26: kr.
B27: Korrektion ift. faktiske omkostninger til medfinansiering af klimatilpasningsprojekter i 2013 | C27: ='10. Klimatilpasning'!C16 -> 0 | D27: kr.
B28: Tillæg/fradrag for nettofinansielle poster i 2015 | C28: ='11. Nettofinansielle poster'!C9 -> -107000 | D28: kr.
B29: Korrektion ift. faktiske nettofinansielle poster i 2013 | C29: ='11. Nettofinansielle poster'!C16 -> 37956 | D29: kr.
B30: Øvrige omkostninger mv. i alt | C30: =SUM(C21:C29) -> 4589608 | D30: kr. | E30: =C30 -> 4589608 | F30: kr.
B31: Historisk over- eller underdækning
B32: Tillæg/fradrag for over- eller underdækning til og med 2010 | C32: ='12. Over- eller underdækning'!C11 -> -2637347.444 | D32: kr. | E32: =C32 -> -2637347.444 | F32: kr.
B33: Korrektion i forhold til tidligere indtægtsramme
B34: Korrektion for overholdelse af indtægtsramme i prisloft 2013 | C34: ='13. Kontrol med indtægtsrammen'!E27 -> 7345723.637 | D34: kr. | E34: =C34 -> 7345723.637 | F34: kr.
B35: Samlet prisloft
B36: Indtægtsramme i 2015 | E36: =SUM(E13:E34) -> 56849457.04 | F36: kr.
B37: Debiteret vandmængde i 2013 | E37: 1137079 | F37: m3
B38: Prisloft 2015 | E38: =E36/E37 -> 49.99604868 | F38: kr./m3

Sheet 3. Driftsomkostninger
A1: ='1. Forside'!A1 -> Rebild Vand og Spildevand A/S (spildevand)
B4: Fane 3. Driftsomkostninger
B6: Driftsomkostningerne i prisloftet for 2014
B7: Korrigerede driftsomkostninger i prisloftet for 2013 (DOiPL 2013) | C7: 13492187 | D7: kr.
B8: Prisfremskrivning 1,5 pct. | C8: =0.015*SUM(C7:C7) -> 202382.805 | D8: kr.
B9: Generelt effektiviseringskrav (0 pct.) | C9: 0 | D9: kr.
B10: Individuelt effektiviseringskrav | C10: -638787 | D10: kr.
B11: Bortfald af midlertidigt tillæg iht. § 8, stk. 5 (inkl. prisfremskrivning) | C11: =-1.015*716450 -> -727196.75 | D11: kr.
B12: Driftsomkostningerne i prisloftet for 2014 (DOiPL 2014) (korrigeret for bortfald af midlertidigt tillæg) | C12: =SUM(C7:C11) -> 12328586.05 | D12: kr.
B15: Korrektion for forventet bortfald af væsentlige omkostninger
B16: Selskabets indberettede bortfald af væsentlige omkostninger inden 2015 | C16: 0 | D16: kr.
B17: Korrektion for forventet bortfald | C17: =SUM(C16:C16) -> 0 | D17: kr.
B20: Korrektion for prisudviklingen fra 2014-2015
B21: Driftsomkostningerne i prisloftet for 2014 | C21: =C12-C17 -> 12328586.05 | D21: kr.
B22: Prisudvikling 2014 - 2015 | C22: 0.08 | D22: pct.
B23: Korrektion for prisudvikling | C23: =C21*(C22/100) -> 9862.868844 | D23: kr.
B26: Eventuel forhøjelse til effektivt niveau iht. benchmarkingen
B27: Selskabets effektive driftsomkostninger iht. benchmarkingen | C27: 9150276.297 | D27: kr.
B28: Selskabets pristalskorrigerede driftsomkostninger i 2015-niveau | C28: =C21+C23 -> 12338448.92 | D28: kr.
B29: Eventuel forhøjelse til effektivt niveau | C29: =IF(C28>C27,0,C27-C28) -> 0 | D29: kr.
B32: Korrektion for generelt effektiviseringskrav
B33: Driftsomkostningerne i prisloftet for 2014 | C33: =C21 -> 12328586.05 | D33: kr.
B34: Generelt effektiviseringskrav | C34: 0.44 | D34: pct.
B35: Endeligt generelt effektiviseringskrav | C35: =C33*(C34/100) -> 54245.77864 | D35: kr.
B38: Korrektion for individuelt effektiviseringskrav
B39: Rå effektiviseringspotentiale | C39: 3284335.227 | D39: kr.
B40: Effektiviseringspotentiale efter eventuel korrektion for særlige forhold | C40: 3178309.39 | D40: kr.
B41: Effektiviseringspotentiale efter forsigtighedshensyn | C41: 1531210.342 | D41: kr.
B42: Effektiviseringspotentiale efter eventuel korrektion for sammensætning af signifikante costdrivere | C42: 1531210.342 | D42: kr.
B43: Umiddelbart effektiviseringskrav | C43: =C42/4 -> 382802.5856 | D43: kr.
B44: Endeligt individuelt effektiviseringskrav | C44: =IF(C43>0.05*C21,0.05*C21,IF(C43<0.01*C21,0,C43)) -> 382802.5856 | D44: kr.

Sheet 4. Historiske investeringer
A1: ='3. Driftsomkostninger'!A1 -> Rebild Vand og Spildevand A/S (spildevand)
B4: Fane 4. Historiske investeringer
B6: Tillæg for historiske investeringer
B7: Værdi af selskabets materielle anlægsaktiver pr. 1. januar 2010 | C7: 1459317441 | D7: kr.
B8: Den årlige standardafskrivning på de materielle anlægsaktiver iht. POLKA | C8: 32120344.19 | D8: kr.
B9: Tillæg i alt i 2015 | C9: =C8 -> 32120344.19 | D9: kr.

Sheet 5. Gennemførte investeringer
A1: ='4. Historiske investeringer'!A1 -> Rebild Vand og Spildevand A/S (spildevand)
B4: Fane 5. Gennemførte investeringer i 2010 - 2013
B6: Tillæg for gennemførte investeringer i 2013
B7: Beskrivelse af investeringen | C7: Årstal | D7: Std. levetid (år) | E7: Anskaffelses-pris (kr.) | F7: Afskrivning
B8: Ledningsnet = Ø 200 mm | C8: 2013 | D8: 75 | E8: 1643256 | F8: =E8/D8 -> 21910.08 | G8: kr.
B9: Ø 200 mm < Ledningsnet = Ø 500 mm | C9: 2013 | D9: 75 | E9: 6711564 | F9: =E9/D9 -> 89487.52 | G9: kr.
B10: Ø 500 mm < Ledningsnet = Ø 800 mm | C10: 2013 | D10: 75 | E10: 558189 | F10: 7442.52 | G10: kr.
B11: Brønde | C11: 2013 | D11: 75 | E11: 8317088 | F11: 110894.5067 | G11: kr.
B12: Stik | C12: 2013 | D12: 75 | E12: 1370010 | F12: 18266.8 | G12: kr.
B13: Indløb-/udløbsarrangement | C13: 2013 | D13: 75 | E13: 30715 | F13: 409.5333333 | G13: kr.
B14: Jordbassin Klasse B | C14: 2013 | D14: 50 | E14: 760000 | F14: 15200 | G14: kr.
B15: Indløb-/udløbsarrangement | C15: 2013 | D15: 75 | E15: 33850 | F15: 451.3333333 | G15: kr.
B16: Ledningsnet = Ø 200 mm | C16: 2013 | D16: 75 | E16: 171357 | F16: 2284.76 | G16: kr.
B17: Arbejdsplads | C17: 2013 | D17: 5 | E17: 1266697 | F17: 253339.4 | G17: kr.
B18: Arbejdsplads | C18: 2013 | D18: 5 | E18: 181911 | F18: 36382.2 | G18: kr.
B19: Pumpestationer m. overbygning (< 20 m2), Mek/EL | C19: 2013 | D19: 20 | E19: 1099364 | F19: 54968.2 | G19: kr.
B20: Pumpestationer m. overbygning (< 20 m2), SRO | C20: 2013 | D20: 10 | E20: 121886 | F20: 12188.6 | G20: kr.
B21: Oversvømmelseskort | C21: 2013 | D21: 5 | E21: 458026 | F21: 91605.2 | G21: kr.
B22: Jordbassin Klasse B | C22: 2013 | D22: 49 | E22: 22212 | F22: 453.3061224 | G22: kr.
B23: Pumpestationer m. overbygning (< 20 m2), Konstruktioner | C23: 2013 | D23: 50 | E23: 1085507 | F23: 21710.14 | G23: kr.
B24: Tillæg for 2013 | F24: =SUM(F8:F23) -> 736994.0995 | G24: kr.
B25: Tillæg for 2010 - 2012 | F25: 1042579.13 | G25: kr.
B26: Samlet tillæg for gennemførte investeringer | F26: =F24+F25 -> 1779573.229 | G26: kr.

Sheet 6. Korrektion investeringer
A1: ='5. Gennemførte investeringer'!A1 -> Rebild Vand og Spildevand A/S (spildevand)
B4: Fane 6. Korrektion af tillæg for planlagte investeringer
B6: Korrektion af tillæg for planlagte investeringer vedr. 2013
B7: Tillæg for planlagte investeringer i 2013 i prisloft 2013 | C7: 472000 | D7: kr.
B8: Tillæg for planlagte investeringer i 2013 i prisloft 2014 | C8: 640000 | D8: kr.
B9: Selskabets faktiske afskrivninger på gennemførte investeringer i 2013 | C9: ='5. Gennemførte investeringer'!F24 -> 736994.0995 | D9: kr.
B10: Korrektion af tillæg for planlagte investeringer vedr. 2013 | C10: =C9-C7+C9-C8 -> 361988.1989 | D10: kr.

Sheet 7. Planlagte investeringer
A1: ='6. Korrektion investeringer'!A1 -> Rebild Vand og Spildevand A/S (spildevand)
B4: Fane 7. Planlagte investeringer
B6: Tillæg for planlagte investeringer i 2014 og 2015
B7: Beskrivelse af investeringen | C7: Årstal | D7: Std. levetid (år) | E7: Anskaffelses-pris (kr.) | F7: Afskrivning
B8: Ledningsnet = Ø 200 mm | C8: 2014 | D8: 75 | E8: 200000 | F8: =E8/D8 -> 2666.666667 | G8: kr.
B9: Ledningsnet = Ø 200 mm | C9: 2014 | D9: 75 | E9: 100000 | F9: =E9/D9 -> 1333.333333 | G9: kr.
B10: Jordbassin Klasse B | C10: 2014 | D10: 50 | E10: 100000 | F10: =E10/D10 -> 2000 | G10: kr.
B11: Ledningsnet = Ø 200 mm | C11: 2014 | D11: 75 | E11: 100000 | F11: 1333.333333 | G11: kr.
B12: Jordbassin Klasse B | C12: 2014 | D12: 50 | E12: 100000 | F12: 2000 | G12: kr.
B13: Ledningsnet = Ø 200 mm | C13: 2014 | D13: 75 | E13: 7250000 | F13: 96666.66667 | G13: kr.
B14: Jordbassin Klasse B | C14: 2014 | D14: 50 | E14: 750000 | F14: 15000 | G14: kr.
B15: Jordbassin Klasse B | C15: 2014 | D15: 50 | E15: 750000 | F15: 15000 | G15: kr.
B16: Ledningsnet = Ø 200 mm | C16: 2014 | D16: 75 | E16: 250000 | F16: 3333.333333 | G16: kr.
B17: Ledningsnet = Ø 200 mm | C17: 2014 | D17: 75 | E17: 6500000 | F17: 86666.66667 | G17: kr.
B18: Jordbassin Klasse B | C18: 2014 | D18: 50 | E18: 1500000 | F18: 30000 | G18: kr.
B19: Jordbassin Klasse B | C19: 2014 | D19: 50 | E19: 1000000 | F19: 20000 | G19: kr.
B20: Ledningsnet = Ø 200 mm | C20: 2014 | D20: 75 | E20: 4000000 | F20: 53333.33333 | G20: kr.
B21: Pumpestationer m. overbygning (< 20 m2), Konstruktioner | C21: 2014 | D21: 50 | E21: 300000 | F21: 6000 | G21: kr.
B22: Pumpestationer m. overbygning (< 20 m2), SRO | C22: 2014 | D22: 10 | E22: 50000 | F22: 5000 | G22: kr.
B23: Pumpestationer m. overbygning (< 20 m2), Mek/EL | C23: 2014 | D23: 20 | E23: 650000 | F23: 32500 | G23: kr.
B24: Stik | C24: 2014 | D24: 75 | E24: 750000 | F24: 10000 | G24: kr.
B25: Ledningsnet = Ø 200 mm | C25: 2014 | D25: 75 | E25: 1500000 | F25: 20000 | G25: kr.
B26: Ledningsnet = Ø 200 mm | C26: 2014 | D26: 75 | E26: 3000000 | F26: 40000 | G26: kr.
B27: Ledningsnet = Ø 200 mm | C27: 2014 | D27: 75 | E27: 3500000 | F27: 46666.66667 | G27: kr.
B28: Pumpestationer m. overbygning (< 20 m2), Konstruktioner | C28: 2014 | D28: 50 | E28: 1500000 | F28: 30000 | G28: kr.
B29: Pumpestationer m. overbygning (< 20 m2), Mek/EL | C29: 2014 | D29: 20 | E29: 800000 | F29: 40000 | G29: kr.
B30: Pumpestationer m. overbygning (< 20 m2), SRO | C30: 2014 | D30: 10 | E30: 200000 | F30: 20000 | G30: kr.
B31: Ledningsnet = Ø 200 mm | C31: 2014 | D31: 75 | E31: 2000000 | F31: 26666.66667 | G31: kr.
B32: Pumpestationer m. overbygning (< 20 m2), Mek/EL | C32: 2014 | D32: 20 | E32: 2000000 | F32: 100000 | G32: kr.
B33: Ledningsnet = Ø 200 mm | C33: 2014 | D33: 75 | E33: 1800000 | F33: 24000 | G33: kr.
B34: Jordbassin Klasse B | C34: 2014 | D34: 50 | E34: 100000 | F34: 2000 | G34: kr.
B35: Pumpestationer i brønde (< 6,25 m2), Konstruktioner | C35: 2014 | D35: 50 | E35: 250000 | F35: 5000 | G35: kr.
B36: Pumpestationer i brønde (< 6,25 m2), Mek/EL | C36: 2014 | D36: 20 | E36: 50000 | F36: 2500 | G36: kr.
B37: Pumpestationer i brønde (< 6,25 m2), SRO | C37: 2014 | D37: 10 | E37: 50000 | F37: 5000 | G37: kr.
B38: Ledningsnet = Ø 200 mm | C38: 2014 | D38: 75 | E38: 2600000 | F38: 34666.66667 | G38: kr.
B39: Jordbassin Klasse B | C39: 2014 | D39: 50 | E39: 100000 | F39: 2000 | G39: kr.
B40: Ledningsnet = Ø 200 mm | C40: 2014 | D40: 75 | E40: 1000000 | F40: 13333.33333 | G40: kr.
B41: Jordbassin Klasse B | C41: 2014 | D41: 50 | E41: 100000 | F41: 2000 | G41: kr.
B42: Ledningsnet = Ø 200 mm | C42: 2014 | D42: 75 | E42: 550000 | F42: 7333.333333 | G42: kr.
B43: Stik | C43: 2015 | D43: 75 | E43: 750000 | F43: 10000 | G43: kr.
B44: Ledningsnet = Ø 200 mm | C44: 2015 | D44: 75 | E44: 1500000 | F44: 20000 | G44: kr.
B45: Ledningsnet = Ø 200 mm | C45: 2015 | D45: 75 | E45: 15000000 | F45: 200000 | G45: kr.
B46: Ledningsnet = Ø 200 mm | C46: 2015 | D46: 75 | E46: 2000000 | F46: 26666.66667 | G46: kr.
B47: Pumpestationer m. overbygning (< 20 m2), Mek/EL | C47: 2015 | D47: 20 | E47: 2000000 | F47: 100000 | G47: kr.
B48: Ledningsnet = Ø 200 mm | C48: 2015 | D48: 75 | E48: 1000000 | F48: 13333.33333 | G48: kr.
B49: Jordbassin Klasse B | C49: 2015 | D49: 50 | E49: 3000000 | F49: 60000 | G49: kr.
B50: Ledningsnet = Ø 200 mm | C50: 2015 | D50: 75 | E50: 1000000 | F50: 13333.33333 | G50: kr.
B51: Ledningsnet = Ø 200 mm | C51: 2015 | D51: 75 | E51: 2000000 | F51: 26666.66667 | G51: kr.
B52: Ledningsnet = Ø 200 mm | C52: 2015 | D52: 75 | E52: 750000 | F52: 10000 | G52: kr.
B53: Jordbassin Klasse B | C53: 2015 | D53: 50 | E53: 250000 | F53: 5000 | G53: kr.
B54: Ledningsnet = Ø 200 mm | C54: 2015 | D54: 75 | E54: 2000000 | F54: 26666.66667 | G54: kr.
B55: Ledningsnet = Ø 200 mm | C55: 2015 | D55: 75 | E55: 3000000 | F55: 40000 | G55: kr.
B56: Pumpestationer m. overbygning (< 20 m2), Konstruktioner | C56: 2015 | D56: 50 | E56: 250000 | F56: 5000 | G56: kr.
B57: Jordbassin Klasse B | C57: 2015 | D57: 50 | E57: 1000000 | F57: 20000 | G57: kr.
B58: Pumpestationer m. overbygning (< 20 m2), Mek/EL | C58: 2015 | D58: 20 | E58: 50000 | F58: 2500 | G58: kr.
B59: Pumpestationer m. overbygning (< 20 m2), SRO | C59: 2015 | D59: 10 | E59: 50000 | F59: 5000 | G59: kr.
B60: Tillæg for 2014 | F60: =SUMIF(C8:C59,"2014",F8:F59) -> 804000 | G60: kr.
B61: Tillæg for 2015 | F61: =SUMIF(C8:C59,"2015",F8:F59) -> 584166.6667 | G61: kr.
B62: Tillæg i alt | F62: =F60+F61 -> 1388166.667 | G62: kr.

Sheet 8. 1-1 omkostninger
A1: ='7. Planlagte investeringer'!A1 -> Rebild Vand og Spildevand A/S (spildevand)
B4: Fane 8. 1:1 omkostninger
B6: Tillæg for budgetterede 1:1 omkostninger i 2015
B7: Betaling til Forsyningssekretariatet | C7: 33000 | D7: kr.
B8: Spildevandsafgift | C8: 180000 | D8: kr.
B9: Køb af varer og tjenesteydelser hos et andet prisloftreguleret vandselskab | C9: 4700000 | D9: kr.
B10: Ejendomsskatter | C10: 32000 | D10: kr.
B11: Tillæg i alt | C11: =SUM(C7:C10) -> 4945000 | D11: kr.
B16: Tillæg for budgetterede nødvendige udgifter til revisorerklæringer samt ordinært medlemskab af DANVA og FVD i 2015
B17: Betaling for ordinært medlemskab af DANVA/FVD | C17: 28200 | D17: kr.
B18: Betaling for revisorerklæringer | C18: 55000 | D18: kr.
B19: Tillæg i alt | C19: =SUM(C17:C18) -> 83200 | D19: kr.
B22: Korrektion af tillæg for faktiske 1:1 omkostninger (inkl. revisorerklæringer og ordinært medlemskab af DANVA/FVD) i 2013
B23: Selskabets faktiske 1:1 omkostninger mv. i 2013, jf. reguleringsregnskabet | C23: 4787202 | D23: kr.
B24: Tillæg for budgetterede 1:1 omkostninger mv. i prisloft 2013 | C24: 5200250 | D24: kr.
B25: Korrektion af tillæg for budgetterede 1:1 omkostninger mv. i 2013 | C25: =C23-C24 -> -413048 | D25: kr.

Sheet 9. Miljø- og servicemål
A1: ='8. 1-1 omkostninger'!A1 -> Rebild Vand og Spildevand A/S (spildevand)
B4: Fane 9. Driftsomkostninger til miljø- og servicemål
B6: Tillæg for budgetterede driftsomkostninger til miljø- og servicemål i 2015
B7: SMS-service | C7: 43500 | D7: kr.
B8: Svovlbrintebekæmpelse | C8: 0 | D8: kr.
B9: Tillæg i alt | C9: =SUM(C7:C7) -> 43500 | D9: kr.
B13: Korrektion af tillæg for faktiske driftsomkostninger til miljø- og servicemål i 2013
B14: Selskabets faktiske driftsomkostninger til miljø- og servicemål i 2013, jf. reguleringsregnskabet | C14: 0 | D14: kr.
B15: Tillæg for budgetterede driftsomkostninger til miljø- og servicemål i prisloft 2013 | C15: 0 | D15: kr.
B16: Korrektion af tillæg for budgetterede driftsomkostninger til miljø- og servicemål i 2013 | C16: =C14-C15 -> 0 | D16: kr.

Sheet 10. Klimatilpasning
A1: ='9. Miljø- og servicemål'!A1 -> Rebild Vand og Spildevand A/S (spildevand)
B4: Fane 10. Medfinansiering af klimatilpasningsprojekter
B7: Tillæg for budgetterede omkostninger til medfinansiering af klimatilpasningsprojekter i 2015
C8: 0 | D8: kr.
B9: Tillæg i alt | C9: =SUM(C8:C8) -> 0 | D9: kr.
B13: Korrektion af tillæg for faktiske omkostninger til medfinansiering af klimatilpasningsprojekter i 2013
B14: Selskabets faktiske driftsomkostninger til klimatilpasningsprojekter i 2013, jf. reguleringsregnskabet | C14: 0 | D14: kr.
B15: Tillæg for budgetterede driftsomkostninger til klimatilpasningsprojekter i prisloft 2013 | C15: 0 | D15: kr.
B16: Korrektion af tillæg for budgetterede omkostninger til klimatilpasningsprojekter i 2013 | C16: =C14-C15 -> 0 | D16: kr.

Sheet 11. Nettofinansielle poster
A1: ='10. Klimatilpasning'!A1 -> Rebild Vand og Spildevand A/S (spildevand)
B4: Fane 11. Nettofinansielle poster
B6: Tillæg for budgetterede nettofinansielle poster i 2015
B7: Budgetterede renteudgifter og gebyrer i 2015 | C7: 643000 | D7: kr.
B8: Budgetterede renteindtægter i 2015 | C8: 750000 | D8: kr.
B9: Tillæg/fradrag i alt | C9: =C7-C8 -> -107000 | D9: kr.
B13: Korrektion af tillæg for faktiske nettofinansielle poster i 2013
B14: Selskabets faktiske nettofinansielle poster i 2013, jf. reguleringsregnskabet | C14: =[1]!'!Ark2!R35C31' -> -812044 | D14: kr.
B15: Tillæg for budgetterede nettofinansielle poster i prisloft 2013 | C15: -850000 | D15: kr.
B16: Korrektion af tillæg for budgetterede nettofinansielle poster i 2013 | C16: =C14-C15 -> 37956 | D16: kr.

Sheet 12. Over- eller underdækning
A1: ='11. Nettofinansielle poster'!A1 -> Rebild Vand og Spildevand A/S (spildevand)
B4: Fane 12. Over- eller underdækning til og med 2010
B6: Tillæg/fradrag for over- eller underdækning til og med 2010
B7: Opgjort over- eller underdækning per 31. december 2010 | C7: -25920000 | D7: kr.
B8: Heraf beløb indregnet i prislofterne for 2011 - 2014 | C8: -10095915.33 | D8: kr.
B9: Endnu ikke indregnet over- eller underdækning | C9: =C7-C8 -> -15824084.67 | D9: kr.
B10: Resterende indregningsperiode (fastsat i prisloftet for 2012) | C10: 6 | D10: år
B11: Tillæg/fradrag i alt | C11: =IF(C7=0,0,C9/C10) -> -2637347.444 | D11: kr.

Sheet 13. Kontrol med indtægtsrammen
A1: ='12. Over- eller underdækning'!A1 -> Rebild Vand og Spildevand A/S (spildevand)
B4: Fane 13. Korrektion for overholdelse af indtægtsrammen i prisloftet for 2013
B6: Samlet opgørelse vedrørende overholdelse af indtægtsrammen i prisloftet for 2013
B7: Indtægtsramme i prisloftet for 2013 | E7: 50057979.58 | F7: kr.
B8: Ikke anvendt likviditet vedrørende investeringer i 2013
B9: Tillæg for historiske investeringer | C9: 32232072.94 | D9: kr.
B10: Tillæg for gennemførte investeringer i 2011 | C10: 981260 | D10: kr.
B11: Korrektion af tillæg for planlagte investeringer i 2011 | C11: 486063 | D11: kr.
B12: Tillæg for planlagte investeringer i 2012 og 2013 | C12: 1130000 | D12: kr.
B13: Indtægter fra tilslutningsbidrag | C13: 2309030 | D13: kr.
B14: Indtægter fra salg af anlægsaktiver | C14: 0 | D14: kr.
B15: Erstatninger vedr. anlægsaktiver mv. | C15: 0 | D15: kr.
B16: Ekstraordinær effektiviseringsgevinst anvendt til investeringer | C16: 0 | D16: kr.
B17: Udgifter til investeringer | C17: -33621740 | D17: kr.
B18: Ikke anvendt likviditet vedr. investeringer i alt | C18: =SUM(C9:C17) -> 3516685.941 | D18: kr. | E18: =IF(C18<0,0,-C18) -> -3516685.941 | F18: kr.
B19: Ekstraordinære effektiviseringsgevinster anvendt til takstnedsættelse
B20: Ekstraordinær effektiviseringsgevinst anvendt til takstnedsættelse | C20: 0 | D20: kr. | E20: =-C20 -> 0 | F20: kr.
B21: Korrektion af ikke opkrævet tillæg fra 2011 i prisloft 2013
B22: Korrektion af ikke opkrævet tillæg fra 2011 i prisloft 2013 | C22: 0 | D22: kr. | E22: =-C22 -> 0 | F22: kr.
B23: Indtægter fra primære aktiviteter mv.
B24: Indtægter fra kubikmetertakster, faste takster, særbidrag, målergebyrer samt andre takster og gebyrer | C24: 39086360 | D24: kr.
B25: Andre indtægter i prisloftåret, som selskabet har opnået i forbindelse med eller som følge af selskabets primære aktiviteter | C25: 109210 | D25: kr.
B26: Indtægter fra primære aktiviteter mv. i alt | C26: =SUM(C24:C25) -> 39195570 | D26: kr. | E26: =-C26 -> -39195570 | F26: kr.
B27: Tillæg/fradrag i prisloftet for 2015 i alt | E27: =E7+E18+E20+E22+E26 -> 7345723.637 | F27: kr.
B31: Oversigt over ekstraordinære effektiviseringsgevinster
C33: 2012 | E33: 2013 | G33: 2014 | I33: 2015 | K33: 2016
B34: Indhentet ekstraordinær effektiviseringsgevinst | C34: 0 | D34: kr. | E34: 1167081 | F34: kr. | H34: kr. | J34: kr. | L34: kr.
B35: Gevinst anvendt til investeringer | C35: 0 | D35: kr. | E35: 0 | F35: kr. | H35: kr. | J35: kr. | L35: kr.
B36: Gevinst anvendt til takstnedsættelse | C36: 0 | D36: kr. | E36: 0 | F36: kr. | H36: kr. | J36: kr. | L36: kr.
B37: Korrektion for effektiviseringsgevinst der ikke er anvendt inden 4 år | C37: 0 | D37: kr. | E37: 0 | F37: kr. | H37: kr. | J37: kr. | K37: =IF(C38>SUM(E35:I36),C38-SUM(E35:I36),0)*-1 -> 0 | L37: kr.
B38: Resterende gevinst | C38: =C34-C35-C36 -> 0 | D38: kr. | E38: =C38+E34-E35-E36 -> 1167081 | F38: kr. | G38: =E38+G34-G35-G36 -> 1167081 | H38: kr. | I38: =G38+I34-I35-I36 -> 1167081 | J38: kr. | K38: =I38+K34-K35-K36+K37 -> 1167081 | L38: kr.
